{"text_format":"2","workbook":"xlsx","n_sheets":14,"sheets":["一覧","template","振替頻度変更（1ヶ月・3ヶ月）","解約","返金","車庫証明発行","シール再発行","車両情報変更","利用者情報変更","申込","口座情報変更","口座登録催促","申込予約","予約空き通知"],"not_rendered":{"charts":0,"images":1,"macros":0,"external_links":0,"defined_names":1,"comments":0,"pivot_tables":0},"unopened":[],"bounds":{"document_bytes":16777216,"sheet_cells":100000,"run_cost":"one","rows_first":2000,"rows_last":500,"rows_between":2000,"halvings":0,"cell_chars":16384,"cell_head_chars":4096},"cells_cut":0,"cells_raw":0,"read":"whole","date_system":"1900"}

{"sheet":"一覧","index":0,"n_rows":29,"n_cols":7,"rows_kept":29,"cut":false,"hidden":false,"merged":[]}
["#","名称","リンク","説明","記載担当","進捗","備考"]
[{"$f":"ROW()-1","v":1},"解約",{"$f":"IF(ISREF(INDIRECT(B2&\"!a1\")),HYPERLINK(\"#\"&\"'\"&B2&\"'\"&\"!a1\",\"■\"),\"\")","v":"■"},null,"公社","記載済"]
[{"$f":"ROW()-1","v":2},"返金",{"$f":"IF(ISREF(INDIRECT(B3&\"!a1\")),HYPERLINK(\"#\"&\"'\"&B3&\"'\"&\"!a1\",\"■\"),\"\")","v":"■"},null,"公社","記載済"]
[3,"車庫証明発行","■",null,"公社","記載済"]
[4,"シール再発行","■",null,"公社","記載済"]
[5,"車両情報変更","■",null,"公社","記載済"]
[6,"利用者情報変更","■",null,"公社","記載済"]
[7,"口座情報変更","■",null,"岩渕","未着手","調査中"]
[8,"振替頻度変更（1ヶ月・3ヶ月）","",null,"公社","記載済"]
[9,"申込","■",null,"岩渕","記載済"]
[10,"口座登録催促","■",null,"岩渕","記載済"]
[11,"申込予約","■","駐車場に空きがない場合は、予約扱いで登録する","公社","仮記載","仮記載したので確認お願いします。＝＞公社"]
[12,"予約空き通知","■","申込予約者に対し空きを通知し、申込継続の意思を確認する。","公社","仮記載","仮記載したので確認お願いします。＝＞公社"]
[13,null,""]
[14,null,""]
[15,null,""]
[16,null,""]
[17,null,""]
[18,null,""]
[19,null,""]
[20,null,""]
[21,null,""]
[22,null,""]
[23,null,""]
[24,null,""]
[25,null,""]
[26,null,""]
[27,null,""]
[28,null,""]

{"sheet":"template","index":1,"n_rows":3,"n_cols":12,"rows_kept":3,"cut":false,"hidden":false,"merged":[]}
[{"$f":"HYPERLINK(\"#一覧!a1\",\"一覧へ\")","v":"一覧へ"},null,"利用者",null,null,"MyPage",null,null,"Kintone",null,null,"公社"]
["システム"]
["人間"]

{"sheet":"振替頻度変更（1ヶ月・3ヶ月）","index":2,"n_rows":1,"n_cols":12,"rows_kept":1,"cut":false,"hidden":false,"merged":[]}
[null,null,"利用者",null,null,"MyPage",null,null,"Kintone",null,null,"公社"]

{"sheet":"解約","index":3,"n_rows":1,"n_cols":12,"rows_kept":1,"cut":false,"hidden":false,"merged":[]}
[null,null,"利用者",null,null,"MyPage",null,null,"Kintone",null,null,"公社"]

{"sheet":"返金","index":4,"n_rows":3,"n_cols":12,"rows_kept":3,"cut":false,"hidden":false,"merged":[]}
[{"$f":"HYPERLINK(\"#一覧!a1\",\"一覧へ\")","v":"一覧へ"},null,"利用者",null,null,"MyPage",null,null,"Kintone",null,null,"公社"]
["システム"]
["人間"]

{"sheet":"車庫証明発行","index":5,"n_rows":22,"n_cols":12,"rows_kept":22,"cut":false,"hidden":false,"merged":[]}
[null,null,"利用者",null,null,"MyPage",null,null,"Kintone",null,null,"公社"]
{"$rows_empty":20}
[null,null,null,"※振込の場合、申請時に「振込」を選択したら自動で振込先を通知できないか？（マイページ上に表示、返信メールに自動で追加表示など）"]

{"sheet":"シール再発行","index":6,"n_rows":1,"n_cols":12,"rows_kept":1,"cut":false,"hidden":false,"merged":[]}
[null,null,"利用者",null,null,"MyPage",null,null,"Kintone",null,null,"公社"]

{"sheet":"車両情報変更","index":7,"n_rows":1,"n_cols":12,"rows_kept":1,"cut":false,"hidden":false,"merged":[]}
[null,null,"利用者",null,null,"MyPage",null,null,"Kintone",null,null,"公社"]

{"sheet":"利用者情報変更","index":8,"n_rows":1,"n_cols":12,"rows_kept":1,"cut":false,"hidden":false,"merged":[]}
[null,null,"利用者",null,null,"MyPage",null,null,"Kintone",null,null,"公社"]

{"sheet":"申込","index":9,"n_rows":1,"n_cols":15,"rows_kept":1,"cut":false,"hidden":false,"merged":[]}
[null,null,"利用者",null,null,"赤画面",null,null,"MyPage",null,null,"Kintone",null,null,"公社"]

{"sheet":"口座情報変更","index":10,"n_rows":1,"n_cols":15,"rows_kept":1,"cut":false,"hidden":false,"merged":[]}
[null,null,"利用者",null,null,"SMBC口座振替",null,null,"MyPage",null,null,"Kintone",null,null,"公社"]

{"sheet":"口座登録催促","index":11,"n_rows":1,"n_cols":12,"rows_kept":1,"cut":false,"hidden":false,"merged":[]}
[null,null,"利用者",null,null,"MyPage",null,null,"Kintone",null,null,"公社"]

{"sheet":"申込予約","index":12,"n_rows":1,"n_cols":15,"rows_kept":1,"cut":false,"hidden":false,"merged":[]}
[null,null,"利用者",null,null,"赤画面",null,null,"MyPage",null,null,"Kintone",null,null,"公社"]

{"sheet":"予約空き通知","index":13,"n_rows":1,"n_cols":12,"rows_kept":1,"cut":false,"hidden":false,"merged":[]}
[null,null,"利用者",null,null,"MyPage",null,null,"Kintone",null,null,"公社"]